fUST/lending_fUST_20251008
["ID","MTS","AMOUNT","RATE_DAILY","PERIOD"]
[390029153,1759937446942,-500.0,0.00020888,2]
[390029155,1759937446951,-500.0,0.00020888,2]
[390029157,1759937446961,-546.78,0.00020888,2]
[390029159,1759937446971,-693.11,0.00020888,2]
[390029162,1759937446981,-500.0,0.00020888,2]
[390029164,1759937446990,-406.70461414,0.00020889,2]
[390029166,1759937447000,-1622.85,0.00020889,2]
[390029167,1759937447010,-500.0,0.00020889,2]
[390029170,1759937447020,-409.57490882,0.00020889,2]
[390029172,1759937447030,-506.57273593,0.00020889,2]
[390029174,1759937447042,-500.0,0.00020889,2]
[390029176,1759937447052,-500.0,0.00020889,2]
[390029178,1759937447062,-500.0,0.00020889,2]
[390029180,1759937447072,-481.40964491,0.00020889,2]
[390029182,1759937447081,-1310.3,0.00020889,2]
[390029184,1759937447091,-500.0,0.00020889,2]
[390029186,1759937447101,-2558.65,0.00020889,2]
[390029188,1759937447111,-1685.71,0.00020889,2]
[390029190,1759937447121,-500.0,0.00020889,2]
[390029192,1759937447131,-1360.54,0.00020889,2]
[390029194,1759937447140,-2260.7,0.00020889,2]
[390029196,1759937447151,-500.0,0.00020889,2]
[390029198,1759937447160,-880.59,0.00020889,2]
[390029200,1759937447171,-500.0,0.00020889,2]
[390029202,1759937447181,-584.35535712,0.00020889,2]
[390029204,1759937447191,-500.0,0.00020889,2]
[390029206,1759937447202,-894.29,0.00020889,2]
[390029208,1759937447212,-500.0,0.00020889,2]
[390029210,1759937447222,-1946.47,0.00020889,2]
[390029212,1759937447232,-3662.75,0.00020889,2]
[390029214,1759937447242,-500.0,0.00020889,2]
[390029217,1759937447252,-1045.17,0.00020889,2]
[390029219,1759937447262,-2821.69,0.00020889,2]
[390029221,1759937447272,-3039.1,0.00020889,2]
[390029223,1759937447282,-615.54,0.00020889,2]
[390029225,1759937447293,-527.87,0.00020889,2]
[390029227,1759937447303,-500.0,0.00020889,2]
[390029229,1759937447314,-268.51986576,0.00020889,2]
[390029231,1759937447324,-500.0,0.00020889,2]
[390029233,1759937447334,-500.0,0.00020889,2]
[390029235,1759937447344,-2556.14,0.00020889,2]
[390029237,1759937447353,-500.0,0.00020889,2]
[390029239,1759937447363,-851.04,0.00020889,2]
[390029241,1759937447374,-500.70865484,0.00020889,2]
[390029243,1759937447383,-543.05,0.00020889,2]
[390029245,1759937447393,-524.52,0.00020889,2]
[390029246,1759937447402,-500.0,0.00020889,2]
[390029248,1759937447412,-500.0,0.00020889,2]
[390029250,1759937447422,-500.0,0.00020889,2]
[390029251,1759937447432,-500.0,0.00020889,2]
[390029253,1759937447441,-500.0,0.00020889,2]
[390029255,1759937447451,-500.0,0.00020889,2]
[390029257,1759937447460,-500.0,0.00020889,2]
[390029259,1759937447470,-500.0,0.00020889,2]
[390029261,1759937447479,-3892.35,0.00020889,2]
[390029263,1759937447489,-527.17,0.00020889,2]
[390029264,1759937447499,-671.93,0.00020889,2]
[390029266,1759937447508,-500.0,0.00020889,2]
[390029268,1759937447518,-500.0,0.00020889,2]
[390029270,1759937447527,-500.0,0.00020889,2]
[390029272,1759937447538,-4872.23,0.00020889,2]
[390029273,1759937447547,-430.6750137,0.00020889,2]
[390029275,1759937447557,-500.0,0.00020889,2]
[390029277,1759937447567,-500.0,0.00020889,2]
[390029279,1759937447577,-4624.8,0.00020889,2]
[390029281,1759937447587,-500.0,0.00020889,2]
[390029282,1759937447597,-701.12,0.00020889,2]
[390029284,1759937447607,-2176.41,0.00020889,2]
[390029286,1759937447616,-2438.24,0.00020889,2]
[390029288,1759937447627,-868.72,0.00020889,2]
[390029290,1759937447637,-500.0,0.00020889,2]
[390029292,1759937447647,-541.62122367,0.00020889,2]
[390029294,1759937447656,-3261.92,0.00020889,2]
[390029296,1759937447666,-578.21,0.00020889,2]
[390029298,1759937447677,-631.74,0.00020889,2]
[390029299,1759937447687,-879.51,0.00020889,2]
[390029301,1759937447696,-725.76,0.00020889,2]
[390029303,1759937447706,-788.24,0.00020889,2]
[390029305,1759937447716,-2049.27,0.00020889,2]
[390029307,1759937447726,-253.80117398,0.00020889,2]
[390029309,1759937447735,-491.08602819,0.00020889,2]
[390029310,1759937447745,-1122.75,0.00020889,2]
[390029312,1759937447755,-3366.94,0.00020889,2]
[390029314,1759937447768,-27772.43,0.00020889,2]
[390029316,1759937447778,-1481.46,0.00020889,2]
[390029318,1759937447791,-1518.47,0.00020889,2]
[390029320,1759937447800,-500.0,0.00020889,2]
[390029322,1759937447809,-3410.69,0.00020889,2]
[390029323,1759937447819,-500.0,0.00020889,2]
[390029325,1759937447829,-727.01,0.00020889,2]
[390029327,1759937447839,-500.0,0.00020889,2]
[390029329,1759937447849,-1182.12,0.00020889,2]
[390029331,1759937447858,-12060.56,0.00020889,2]
[390029333,1759937447868,-5363.36,0.00020889,2]
[390029335,1759937447877,-500.0,0.00020889,2]
[390029336,1759937447887,-500.0,0.00020889,2]
[390029338,1759937447897,-954.68,0.00020889,2]
[390029340,1759937447907,-1996.52,0.00020889,2]
[390029342,1759937447917,-500.0,0.00020889,2]
[390029344,1759937447927,-601.64,0.00020889,2]
[390029346,1759937447936,-1809.98,0.00020889,2]
[390029365,1759937448117,-1871.38,0.00020889,2]
[390029367,1759937448154,-500.0,0.00020889,2]
[390029369,1759937448165,-1921.57,0.00020889,2]
[390029371,1759937448175,-500.0,0.00020889,2]
[390029372,1759937448185,-25549.18,0.00020889,2]
[390029374,1759937448194,-500.0,0.00020889,2]
[390029376,1759937448204,-500.0,0.00020889,2]
[390029378,1759937448214,-462.6307553,0.00020889,2]
[390029380,1759937448223,-500.0,0.00020889,2]
[390029382,1759937448233,-2227.38,0.00020889,2]
[390029384,1759937448242,-500.0,0.00020889,2]
[390029386,1759937448252,-335.43963029,0.00020889,2]
[390029388,1759937448262,-500.0,0.00020889,2]
[390029390,1759937448271,-500.0,0.00020889,2]
[390029392,1759937448281,-500.0,0.00020889,2]
[390029393,1759937448293,-1639.73,0.00020889,2]
[390029395,1759937448302,-5077.29,0.00020889,2]
[390029397,1759937448311,-16580.84,0.00020889,2]
[390029399,1759937448321,-500.0,0.00020889,2]
[390029401,1759937448331,-500.0,0.00020889,2]
[390029403,1759937448341,-3427.56,0.00020889,2]
[390029405,1759937448350,-500.0,0.00020889,2]
[390029407,1759937448359,-500.0,0.00020889,2]
[390029408,1759937448369,-632.07010434,0.00020889,2]
[390029410,1759937448378,-500.0,0.00020889,2]
[390029412,1759937448389,-467.93197008,0.00020889,2]
[390029414,1759937448399,-787.89,0.00020889,2]
[390029416,1759937448409,-10058.96,0.00020889,2]
[390029418,1759937448419,-500.0,0.00020889,2]
[390029420,1759937448428,-708.75,0.00020889,2]
[390029421,1759937448438,-560.95,0.00020889,2]
[390029423,1759937448447,-500.0,0.00020889,2]
[390029425,1759937448456,-6589.74,0.00020889,2]
[390029427,1759937448465,-1403.4,0.00020889,2]
[390029429,1759937448475,-1157.02,0.00020889,2]
[390029431,1759937448485,-500.0,0.00020889,2]
[390029433,1759937448495,-500.0,0.00020889,2]
[390029435,1759937448505,-500.0,0.00020889,2]
[390029436,1759937448514,-500.0,0.00020889,2]
[390029438,1759937448524,-500.0,0.00020889,2]
[390029440,1759937448533,-500.0,0.00020889,2]
[390029442,1759937448543,-1171.41,0.00020889,2]
[390029444,1759937448553,-3148.95,0.00020889,2]
[390029445,1759937448563,-587.92,0.00020889,2]
[390029447,1759937448572,-2552.85,0.00020889,2]
[390029449,1759937448581,-500.0,0.00020889,2]
[390029451,1759937448592,-5439.26,0.00020889,2]
[390029453,1759937448602,-2112.67,0.00020889,2]
[390029455,1759937448612,-1023.03,0.00020889,2]
[390029456,1759937448621,-1712.7,0.00020889,2]
[390029458,1759937448631,-548.87,0.00020889,2]
[390029460,1759937448641,-500.0,0.00020889,2]
[390029462,1759937448650,-2467.83,0.00020889,2]
[390029464,1759937448659,-500.0,0.00020889,2]
[390029466,1759937448669,-1747.76,0.00020889,2]
[390029468,1759937448679,-2865.24,0.00020889,2]
[390029470,1759937448689,-896.57,0.00020889,2]
[390029472,1759937448699,-250.92,0.00020889,2]
[390029473,1759937448708,-455.29936593,0.00020889,2]
[390029475,1759937448718,-3669.88,0.00020889,2]
[390029476,1759937448727,-500.0,0.00020889,2]
[390029478,1759937448736,-500.0,0.00020889,2]
[390029480,1759937448746,-500.0,0.00020889,2]
[390029482,1759937448756,-500.0,0.00020889,2]
[390029484,1759937448769,-500.0,0.00020889,2]
[390029486,1759937448779,-500.0,0.00020889,2]
[390029488,1759937448789,-500.0,0.00020889,2]
[390029489,1759937448798,-10541.41,0.00020889,2]
[390029491,1759937448808,-1000.0,0.00020889,2]
[390029493,1759937448818,-500.0,0.00020889,2]
[390029495,1759937448827,-500.0,0.00020889,2]
[390029496,1759937448838,-4812.62,0.00020889,2]
[390029498,1759937448848,-480.59748643,0.00020889,2]
[390029500,1759937448857,-500.0,0.00020889,2]
[390029501,1759937448867,-1788.77,0.00020889,2]
[390029502,1759937448876,-500.0,0.00020889,2]
[390029503,1759937448885,-3842.73,0.00020889,2]
[390029504,1759937448896,-1493.94,0.00020889,2]
[390029505,1759937448904,-500.0,0.00020889,2]
[390029506,1759937448915,-500.0,0.00020889,2]
[390029507,1759937448924,-4715.07,0.00020889,2]
[390029508,1759937448934,-500.0,0.00020889,2]
[390029509,1759937448943,-693.71,0.00020889,2]
[390029510,1759937448952,-866.18,0.00020889,2]
[390029511,1759937448962,-500.0,0.00020889,2]
[390029512,1759937448972,-1862.79,0.00020889,2]
[390029513,1759937448982,-500.0,0.00020889,2]
[390029514,1759937448991,-11559.55,0.00020889,2]
[390029515,1759937449000,-500.0,0.00020889,2]
[390029516,1759937449010,-500.0,0.00020889,2]
[390029517,1759937449019,-509.38,0.00020889,2]
[390029518,1759937449028,-500.0,0.00020889,2]
[390029519,1759937449039,-500.0,0.00020889,2]
[390029520,1759937449048,-500.0,0.00020889,2]
[390029521,1759937449057,-9902.59,0.00020889,2]
[390029522,1759937449067,-500.0,0.00020889,2]
[390029523,1759937449077,-739.05,0.00020889,2]
[390029524,1759937449087,-647.39804805,0.00020889,2]
[390029525,1759937449096,-500.0,0.00020889,2]
[390029526,1759937449106,-500.0,0.00020889,2]
[390029527,1759937449116,-500.0,0.00020889,2]
[390029528,1759937449126,-581.45,0.00020889,2]
[390029529,1759937449136,-481.73812641,0.00020889,2]
[390029530,1759937449146,-500.0,0.00020889,2]
[390029531,1759937449155,-500.0,0.00020889,2]
[390029532,1759937449165,-913.55,0.00020889,2]
[390029533,1759937449174,-2395.74,0.00020889,2]
[390029534,1759937449184,-500.0,0.00020889,2]
[390029535,1759937449193,-13817.46,0.00020889,2]
[390029536,1759937449203,-500.0,0.00020889,2]
[390029537,1759937449212,-539.86,0.00020889,2]
[390029538,1759937449223,-722.12,0.00020889,2]
[390029539,1759937449233,-805.44,0.00020889,2]
[390029540,1759937449242,-500.0,0.00020889,2]
[390029541,1759937449251,-1938.64,0.00020889,2]
[390029542,1759937449260,-2708.52,0.00020889,2]
[390029543,1759937449270,-500.0,0.00020889,2]
[390029544,1759937449279,-817.13,0.00020889,2]
[390029545,1759937449288,-558.72,0.00020889,2]
[390029546,1759937449297,-2489.47928251,0.00020897,2]
[390029547,1759937449307,-500.0,0.00020899,2]
[390029548,1759937449316,-500.0,0.00020899,2]
[390029549,1759937449326,-500.0,0.00020899,2]
[390029550,1759937449335,-320.3153142,0.00020899,2]
[390029551,1759937449344,-500.0,0.00020899,2]
[390029552,1759937449354,-405.48534895,0.00020899,2]
[390029553,1759937449363,-500.0,0.00020899,2]
[390029554,1759937449372,-500.0,0.00020899,2]
[390029555,1759937449382,-500.0,0.00020899,2]
[390029556,1759937449391,-500.0,0.00020899,2]
[390029557,1759937449400,-1368.17,0.00020899,2]
[390029558,1759937449409,-1648.65,0.00020899,2]
[390029559,1759937449418,-1179.83,0.00020899,2]
[390029560,1759937449428,-897.33,0.00020899,2]
[390029561,1759937449437,-5676.99,0.00020899,2]
[390029562,1759937449445,-12114.93,0.00020899,2]
[390029563,1759937449454,-3100.81,0.00020899,2]
[390029564,1759937449463,-1042.65,0.00020899,2]
[390029565,1759937449472,-3585.99,0.00020899,2]
[390029566,1759937449481,-500.0,0.00020899,2]
[390029567,1759937449490,-1724.52,0.00020899,2]
[390029568,1759937449500,-3555.54,0.00020899,2]
[390029569,1759937449509,-1486.0,0.00020899,2]
[390029570,1759937449518,-8155.37,0.00020899,2]
[390029571,1759937449528,-1160.72,0.00020899,2]
[390029572,1759937449537,-1917.81,0.00020899,2]
[390029573,1759937449546,-2137.32,0.00020899,2]
[390029574,1759937449555,-178.0,0.00020972,2]
[390029575,1759937449564,-2576.05,0.00020995,2]
[390029576,1759937449573,-500.0,0.00020995,2]
[390029577,1759937449583,-500.0,0.00020995,2]
[390029578,1759937449592,-972.01,0.00020995,2]
[390029579,1759937449601,-500.0,0.00020995,2]
[390029580,1759937449613,-999.48,0.00020995,2]
[390029581,1759937449622,-787.75,0.00020995,2]
[390029582,1759937449631,-500.0,0.00020995,2]
[390029583,1759937449640,-500.0,0.00020995,2]
[390029584,1759937449650,-2453.85,0.00020995,2]
[390029585,1759937449660,-978.94,0.00020999,2]
[390029586,1759937449670,-500.0,0.00020999,2]
[390029587,1759937449679,-500.0,0.00020999,2]
[390029588,1759937449688,-8271.92,0.00020999,2]
[390029589,1759937449698,-1320.09,0.00020999,2]
[390029590,1759937449706,-500.0,0.00020999,2]
[390029591,1759937449716,-1060.10768076,0.00021,2]
[390029592,1759937449725,-11370.52999779,0.00021,4]
[390029593,1759937449734,-615.67008862,0.00021002,2]
[390029594,1759937449744,-500.0,0.00021009,2]
[390029595,1759937449753,-500.0,0.00021009,2]
[390029596,1759937449767,-500.0,0.00021009,2]
[390029597,1759937449776,-883.17,0.00021009,2]
[390029598,1759937449786,-587.04,0.00021009,2]
[390029599,1759937449795,-500.0,0.00021009,2]
[390029600,1759937449804,-641.77,0.00021009,2]
[390029601,1759937449814,-580.18,0.00021009,2]
[390029602,1759937449823,-500.0,0.00021009,2]
[390029603,1759937449832,-500.0,0.00021009,2]
[390029604,1759937449841,-792.47,0.00021084,2]
[390029605,1759937449850,-500.0,0.00021084,2]
[390029606,1759937449859,-500.0,0.00021084,2]
[390029607,1759937449869,-1686.01,0.00021084,2]
[390029608,1759937449877,-500.0,0.00021084,2]
[390029609,1759937449887,-667.24,0.00021084,2]
[390029610,1759937449896,-2550.31,0.00021084,2]
[390029611,1759937449905,-692.79,0.00021084,2]
[390029612,1759937449914,-3691.34,0.00021084,2]
[390029613,1759937449924,-537.72,0.00021084,2]
[390029614,1759937449933,-9226.94,0.00021084,2]
[390029615,1759937449943,-2676.8,0.00021084,2]
[390029616,1759937449953,-500.0,0.00021084,2]
[390029617,1759937449962,-794.29,0.00021084,2]
[390029618,1759937449972,-6044.21,0.00021084,2]
[390029619,1759937449982,-24658.82,0.00021084,2]
[390029620,1759937449991,-807.89,0.00021084,2]
[390029621,1759937450001,-15075.12,0.00021084,2]
[390029622,1759937450010,-2438.57,0.00021085,2]
[390029623,1759937450020,-2008.58,0.00021085,2]
[390029624,1759937450030,-500.0,0.00021085,2]
[390029625,1759937450040,-3758.91667296,0.00021085,2]
[390029626,1759937450474,-955.22253843,0.00021085,2]
[390029627,1759937450487,-495.03078861,0.00021085,2]
[390029628,1759937450497,-530.89869133,0.00021085,2]
[390029629,1759937450508,-356.87099803,0.00021085,2]
[390029630,1759937450850,-500.0,0.00019988,2]
[390029631,1759937450860,-500.0,0.00020262,2]
[390029632,1759937450869,-500.0,0.00020615,2]
[390029633,1759937450878,-243.5719622,0.00020889,2]
[390029634,1759937450887,-1221.01031064,0.00021085,2]
[390029635,1759937450896,-636.40963228,0.00021085,2]
[390029636,1759937454919,416.81554406,0.00018403,2]
[390029638,1759937525022,1592.9458794,0.0002876,120]
[390029639,1759937566746,157.180669,0.00024,30]
[390029640,1759937614170,300.0,0.00028767,120]
[390029641,1759937693430,300.0,0.00028767,120]
[390029642,1759937724097,222.321,0.00028767,120]
[390029643,1759937734751,172.0,0.00021522,120]
[390029644,1759937736155,172.0,0.00022598,120]
[390029645,1759937737500,172.0,0.00023728,120]
[390029646,1759937738855,172.0,0.00024915,120]
[390029647,1759937740217,172.0,0.0002616,120]
[390029648,1759937741829,172.0,0.00027468,120]
[390029649,1759937818249,900.0,0.00018433,2]
[390029651,1759937854813,900.0,0.00018433,2]
[390029652,1759937862809,1000.0,0.00028493,120]
[390029653,1759937863098,1080.3326477,0.0002852,120]
[390029654,1759938015745,151.0,0.000181,2]
[390029655,1759938110664,176.080234,0.00018928,120]
[390029656,1759938161653,157.180669,0.00024,30]
[390029657,1759938161952,157.180669,0.00024,30]
[390029662,1759938330481,1000.0,0.00027397,120]
[390029663,1759938359026,-218.519435,0.00018826,2]
[390029664,1759938359056,-176.080234,0.00018928,2]
[390029665,1759938359085,-1500.0,0.00019,2]
[390029666,1759938359116,-684.38476317,0.00019,2]
[390029667,1759938359146,-383.58396841,0.000191,2]
[390029668,1759938359175,-500.0,0.000191,2]
[390029669,1759938359205,-359.69426078,0.00019345,2]
[390029670,1759938360755,-4581.51011967,0.00019698,2]
[390029671,1759938360779,-836.98976066,0.00019698,2]
[390029672,1759938362806,-441.12156368,0.000197,2]
[390029673,1759938362836,-300.0,0.00019722,2]
[390029674,1759938362867,-3099.26699234,0.00019723,2]
[390029675,1759938362938,-2319.23288796,0.00019723,2]
[390029692,1759938401350,5000.0,0.000261,55]
[390029694,1759938485055,1042.87955,0.00028767,120]
[390029697,1759938620151,199.94,0.00028767,120]
[390029787,1759938632528,-1000.0,0.00018765,2]
[390029790,1759938632538,-385.38239961,0.00018765,2]
[390029793,1759938632548,-438.45480543,0.000188,2]
[390029796,1759938632558,-200.0,0.000191,2]
[390029800,1759938632568,-443.18975956,0.00019365,2]
[390029803,1759938632577,-250.0,0.00019448,2]
[390029805,1759938632588,-200.0,0.0001951,2]
[390029808,1759938632600,-298.45494486,0.00019603,2]
[390029811,1759938632610,-1300.30408536,0.00019617,2]
[390029814,1759938632620,-555.21400518,0.00019697,2]
[390030535,1759938638436,-1201.96029675,0.00019697,2]
[390030537,1759938638448,-1501.08898084,0.00019697,2]
[390030539,1759938638461,-3397.93671723,0.00019697,2]
[390030541,1759938638470,-300.0,0.00019697,2]
[390030543,1759938638480,-300.0,0.00019697,2]
[390030545,1759938638490,-300.0,0.00019697,2]
[390030548,1759938638501,-300.0,0.00019697,2]
[390030551,1759938638511,-300.0,0.00019697,2]
[390030553,1759938638521,-1200.0,0.00019697,2]
[390030555,1759938638531,-874.56,0.00019697,2]
[390030556,1759938638541,-500.0,0.00019697,2]
[390030557,1759938638550,-500.0,0.00019697,2]
[390030558,1759938638559,-31969.38402963,0.00019698,2]
[390030560,1759938638569,-5418.4998803,0.00019749,2]
[390030562,1759938638578,-1200.0,0.00019773,2]
[390030564,1759938638589,-5418.4998803,0.00019774,2]
[390030566,1759938638599,-1325.89,0.00019786,3]
[390030568,1759938638609,-662.95,0.00019786,3]
[390030570,1759938638619,-331.47,0.00019786,3]
[390030572,1759938638629,-165.74,0.00019786,3]
[390030574,1759938638639,-497.24,0.00019786,3]
[390030576,1759938638649,-500.0,0.00019794,2]
[390030578,1759938638663,-693.41,0.00019794,2]
[390030580,1759938638673,-500.0,0.00019794,2]
[390030582,1759938638682,-500.0,0.00019794,2]
[390030584,1759938638693,-656.46,0.00019794,2]
[390030586,1759938638703,-192.82129158,0.00019794,2]
[390030588,1759938638713,-241.5172488,0.00019794,2]
[390030590,1759938638723,-500.0,0.00019794,2]
[390030592,1759938638734,-500.0,0.00019794,2]
[390030595,1759938638744,-500.0,0.00019794,2]
[390030597,1759938638754,-500.0,0.00019794,2]
[390030599,1759938638764,-463.71777652,0.00019794,2]
[390030601,1759938638773,-500.0,0.00019794,2]
[390030603,1759938638783,-500.0,0.00019794,2]
[390030605,1759938638793,-500.0,0.00019794,2]
[390030607,1759938638802,-500.0,0.00019794,2]
[390030608,1759938638813,-500.0,0.00019794,2]
[390030611,1759938638823,-592.38807267,0.00019794,2]
[390030612,1759938638833,-500.0,0.00019794,2]
[390030614,1759938638842,-500.0,0.00019794,2]
[390030617,1759938638856,-500.0,0.00019794,2]
[390030619,1759938638866,-500.0,0.00019794,2]
[390030620,1759938638876,-500.0,0.00019794,2]
[390030623,1759938638886,-500.0,0.00019794,2]
[390030625,1759938638897,-500.0,0.00019794,2]
[390030627,1759938638907,-500.0,0.00019794,2]
[390030628,1759938638916,-500.0,0.00019795,2]
[390030630,1759938638926,-500.0,0.00019795,2]
[390030632,1759938638936,-320.3153142,0.00019795,2]
[390030634,1759938638945,-500.0,0.00019795,2]
[390030637,1759938638955,-405.48534895,0.00019795,2]
[390030639,1759938638965,-500.0,0.00019795,2]
[390030641,1759938638974,-500.0,0.00019795,2]
[390030643,1759938638984,-500.0,0.00019795,2]
[390030644,1759938638993,-500.0,0.00019795,2]
[390030645,1759938639003,-500.0,0.00019795,2]
[390030646,1759938639014,-991.54,0.00019795,2]
[390030647,1759938639026,-1496.09,0.00019795,2]
[390030648,1759938639036,-500.0,0.00019795,2]
[390030649,1759938639046,-500.0,0.00019795,2]
[390030650,1759938639056,-500.0,0.00019795,2]
[390030651,1759938639066,-2273.75,0.00019795,2]
[390030652,1759938639076,-806.59,0.00019795,2]
[390030653,1759938639086,-500.0,0.00019795,2]
[390030654,1759938639097,-2376.79,0.00019795,2]
[390030655,1759938639106,-8163.05,0.00019795,2]
[390030656,1759938639116,-715.84,0.00019795,2]
[390030657,1759938639126,-500.0,0.00019795,2]
[390030658,1759938639136,-22092.42,0.00019795,2]
[390030659,1759938639145,-5288.68,0.00019795,2]
[390030660,1759938639156,-727.73,0.00019795,2]
[390030661,1759938639166,-500.0,0.00019795,2]
[390030662,1759938639176,-314.95459053,0.00019795,2]
[390030663,1759938639186,-177.89497838,0.00019795,2]
[390030664,1759938639196,-2243.03,0.00019796,2]
[390030665,1759938639206,-500.0,0.00019796,2]
[390030667,1759938639216,-830.84,0.00019796,2]
[390030669,1759938639226,-500.0,0.00019796,2]
[390030671,1759938639236,-744.85,0.00019796,2]
[390030672,1759938639246,-744.85,0.00019796,2]
[390030674,1759938639255,-2153.67,0.00019796,2]
[390030676,1759938639264,-776.93,0.00019796,2]
[390030678,1759938639275,-500.0,0.00019796,2]
[390030680,1759938639286,-500.0,0.00019796,2]
[390030682,1759938639295,-277.86516728,0.00019796,2]
[390030684,1759938639305,-500.0,0.00019796,2]
[390030686,1759938639315,-1026.21,0.00019796,2]
[390030688,1759938639324,-500.0,0.00019796,2]
[390030690,1759938639333,-938.51,0.00019796,2]
[390030692,1759938639342,-500.0,0.00019796,2]
[390030695,1759938639353,-500.0,0.00019796,2]
[390030697,1759938639363,-737.19,0.00019796,2]
[390030699,1759938639372,-500.0,0.00019796,2]
[390030701,1759938639382,-500.0,0.00019796,2]
[390030703,1759938639391,-624.79,0.00019796,2]
[390030704,1759938639401,-500.0,0.00019796,2]
[390030707,1759938639410,-544.84,0.00019796,2]
[390030709,1759938639420,-13513.37,0.00019796,2]
[390030711,1759938639430,-787.93,0.00019796,2]
[390030713,1759938639440,-2249.48,0.00019796,2]
[390030715,1759938639450,-500.0,0.00019796,2]
[390030717,1759938639459,-4691.98,0.00019796,2]
[390030719,1759938639468,-1434.92,0.00019796,2]
[390030721,1759938639478,-500.0,0.00019796,2]
[390030723,1759938639488,-500.0,0.00019796,2]
[390030725,1759938639497,-1600.79,0.00019796,2]
[390030727,1759938639506,-1308.91,0.00019796,2]
[390030729,1759938639516,-500.0,0.00019796,2]
[390030731,1759938639526,-587.36249777,0.00019796,2]
[390030733,1759938639536,-500.0,0.00019796,2]
[390030735,1759938639545,-1081.68,0.00019796,2]
[390030737,1759938639554,-1151.5,0.00019796,2]
[390030739,1759938639564,-500.0,0.00019796,2]
[390030741,1759938639573,-500.0,0.00019796,2]
[390030743,1759938639583,-500.0,0.00019796,2]
[390030745,1759938639592,-500.0,0.00019796,2]
[390030747,1759938639604,-8327.93,0.00019796,2]
[390030749,1759938639613,-500.0,0.00019796,2]
[390030751,1759938639623,-859.94,0.00019796,2]
[390030753,1759938639633,-500.0,0.00019796,2]
[390030755,1759938639644,-500.0,0.00019796,2]
[390030757,1759938639654,-5503.88,0.00019796,2]
[390030759,1759938639667,-500.0,0.00019796,2]
[390030761,1759938639677,-2816.97,0.00019796,2]
[390030763,1759938639686,-592.78,0.00019796,2]
[390030765,1759938639696,-849.36,0.00019796,2]
[390030767,1759938639706,-500.0,0.00019796,2]
[390030769,1759938639715,-500.0,0.00019796,2]
[390030771,1759938639724,-11690.35,0.00019796,2]
[390030773,1759938639734,-500.0,0.00019796,2]
[390030775,1759938639747,-500.0,0.00019796,2]
[390030777,1759938639756,-333.31930983,0.00019796,2]
[390030779,1759938639766,-713.63,0.00019796,2]
[390030781,1759938639776,-1258.69,0.00019796,2]
[390030783,1759938639785,-2995.32,0.00019796,2]
[390030785,1759938639794,-500.0,0.00019796,2]
[390030787,1759938639803,-1258.44,0.00019796,2]
[390030789,1759938639812,-483.2974563,0.00019796,2]
[390030791,1759938639822,-500.0,0.00019796,2]
[390030793,1759938639831,-1505.72,0.00019796,2]
[390030795,1759938639842,-1019.21,0.00019796,2]
[390030797,1759938639851,-837.06,0.00019796,2]